[Event "Grandmaster Triathlon - Blitz (GM2)"]
[Site "Biel, Switzerland"]
[Date "2026.07.19"]
[Round "9.1"]
[White "Xiao, Tong(Qd)"]
[Black "Vaishali, Rameshbabu"]
[Result "1-0"]
[TimeControl "3 + 2"]
[WhiteTitle "-"]
[BlackTitle "-"]
[WhiteFideId "8622388"]
[BlackFideId "5091756"]
[WhiteElo "2465"]
[BlackElo "2364"]

1. e4 {[%clk 00:03:02]} {[%emt 00:00:02]} d5 {[%clk 00:03:01]} {[%emt
00:00:04]} 2. exd5 {[%clk 00:03:03]} {[%emt 00:00:01]} Qxd5 {[%clk 00:03:02]}
{[%emt 00:00:01]} 3. Nc3 {[%clk 00:03:01]} {[%emt 00:00:03]} Qa5 {[%clk
00:03:03]} {[%emt 00:00:01]} 4. Nf3 {[%clk 00:03:00]} {[%emt 00:00:03]} Bf5
{[%clk 00:03:01]} {[%emt 00:00:05]} 5. Bc4 {[%clk 00:02:59]} {[%emt 00:00:03]}
e6 {[%clk 00:03:01]} {[%emt 00:00:02]} 6. d3 {[%clk 00:02:59]} {[%emt
00:00:02]} c6 {[%clk 00:02:58]} {[%emt 00:00:05]} 7. O-O {[%clk 00:02:56]}
{[%emt 00:00:05]} Nf6 {[%clk 00:02:58]} {[%emt 00:00:02]} 8. Bd2 {[%clk
00:02:54]} {[%emt 00:00:05]} Qc7 {[%clk 00:02:56]} {[%emt 00:00:04]} 9. Re1
{[%clk 00:02:48]} {[%emt 00:00:08]} Nbd7 {[%clk 00:02:57]} 10. h3 {[%clk
00:02:48]} {[%emt 00:00:02]} Bd6 {[%emt 00:00:11]} 11. Nd4 {[%clk 00:02:46]}
O-O {[%clk 00:02:37]} {[%emt 00:00:17]} 12. Nxf5 {[%clk 00:02:47]} {[%emt
00:00:02]} exf5 {[%clk 00:02:38]} 13. a4 {[%clk 00:02:42]} {[%emt 00:00:08]}
Rae8 {[%clk 00:02:25]} {[%emt 00:00:15]} 14. Qf3 {[%clk 00:02:26]} {[%emt
00:00:18]} g6 {[%clk 00:01:55]} {[%emt 00:00:32]} 15. Bh6 {[%clk 00:02:23]}
{[%emt 00:00:05]} Rxe1+ {[%clk 00:01:55]} {[%emt 00:00:02]} 16. Rxe1 {[%clk
00:02:24]} Re8 {[%clk 00:01:32]} {[%emt 00:00:25]} 17. Rxe8+ {[%clk 00:02:23]}
{[%emt 00:00:02]} Nxe8 {[%clk 00:01:33]} {[%emt 00:00:01]} 18. Qe3 {[%clk
00:02:18]} {[%emt 00:00:07]} Qb8 {[%clk 00:01:17]} {[%emt 00:00:18]} 19. Ne2
{[%clk 00:02:02]} {[%emt 00:00:17]} Bf8 {[%clk 00:01:08]} {[%emt 00:00:11]} 20.
Bxf8 {[%clk 00:01:38]} {[%emt 00:00:27]} Kxf8 {[%clk 00:01:05]} {[%emt
00:00:06]} 21. f4 {[%clk 00:01:14]} {[%emt 00:00:25]} Nef6 {[%clk 00:00:47]}
{[%emt 00:00:20]} 22. Bb3 {[%clk 00:01:04]} {[%emt 00:00:12]} Qe8 {[%clk
00:00:45]} {[%emt 00:00:04]} 23. Kf2 {[%clk 00:01:05]} {[%emt 00:00:01]} Qxe3+
{[%clk 00:00:40]} {[%emt 00:00:07]} 24. Kxe3 {[%clk 00:01:06]} Ke7 {[%clk
00:00:41]} {[%emt 00:00:01]} 25. c3 {[%clk 00:00:59]} {[%emt 00:00:08]} Nc5
{[%clk 00:00:41]} {[%emt 00:00:02]} 26. Bc2 {[%clk 00:01:00]} {[%emt 00:00:01]}
Nd5+ {[%clk 00:00:42]} {[%emt 00:00:01]} 27. Kf3 {[%clk 00:01:00]} {[%emt
00:00:02]} a5 {[%clk 00:00:43]} {[%emt 00:00:01]} 28. d4 {[%clk 00:00:57]}
{[%emt 00:00:05]} Ne6 {[%clk 00:00:35]} {[%emt 00:00:09]} 29. g4 {[%clk
00:00:54]} {[%emt 00:00:04]} fxg4+ {[%clk 00:00:36]} {[%emt 00:00:02]} 30. hxg4
{[%clk 00:00:56]} h6 {[%clk 00:00:37]} {[%emt 00:00:02]} 31. Be4 {[%clk
00:00:51]} {[%emt 00:00:06]} Nb6 {[%clk 00:00:33]} {[%emt 00:00:06]} 32. b3
{[%clk 00:00:49]} {[%emt 00:00:03]} g5 {[%clk 00:00:20]} {[%emt 00:00:15]} 33.
f5 {[%clk 00:00:48]} {[%emt 00:00:03]} Nc7 {[%clk 00:00:21]} {[%emt 00:00:01]}
34. c4 {[%clk 00:00:42]} {[%emt 00:00:09]} Ne8 {[%clk 00:00:19]} {[%emt
00:00:04]} 35. Nc3 {[%clk 00:00:29]} {[%emt 00:00:15]} Nf6 {[%clk 00:00:19]}
{[%emt 00:00:01]} 36. Bd3 {[%clk 00:00:29]} {[%emt 00:00:02]} Nbd7 {[%clk
00:00:20]} {[%emt 00:00:01]} 37. Kg3 {[%clk 00:00:19]} {[%emt 00:00:12]} c5
{[%clk 00:00:17]} {[%emt 00:00:05]} 38. d5 {[%clk 00:00:16]} {[%emt 00:00:05]}
Kd6 {[%clk 00:00:15]} {[%emt 00:00:04]} 39. Nb5+ {[%clk 00:00:08]} {[%emt
00:00:10]} Ke7 {[%clk 00:00:16]} 40. Be2 {[%clk 00:00:06]} {[%emt 00:00:03]}
Ne4+ {[%clk 00:00:15]} {[%emt 00:00:03]} 41. Kf3 {[%clk 00:00:05]} {[%emt
00:00:04]} Nd2+ {[%clk 00:00:15]} {[%emt 00:00:02]} 42. Ke3 {[%clk 00:00:07]}
Nxb3 {[%clk 00:00:15]} {[%emt 00:00:01]} 43. Bd1 {[%clk 00:00:08]} Nd4 {[%clk
00:00:12]} {[%emt 00:00:05]} 44. d6+ {[%clk 00:00:09]} Kd8 {[%clk 00:00:05]}
{[%emt 00:00:09]} 45. Nxd4 {[%clk 00:00:10]} {[%emt 00:00:01]} cxd4+ {[%clk
00:00:06]} 46. Kxd4 {[%clk 00:00:11]} Nf6 {[%clk 00:00:05]} {[%emt 00:00:04]}
47. Bf3 {[%clk 00:00:08]} {[%emt 00:00:05]} Kd7 {[%clk 00:00:04]} {[%emt
00:00:03]} 48. c5 {[%clk 00:00:06]} {[%emt 00:00:04]} b6 {[%clk 00:00:05]}
{[%emt 00:00:02]} 49. Ke5 {[%clk 00:00:05]} {[%emt 00:00:04]} bxc5 {[%clk
00:00:03]} {[%emt 00:00:04]} 50. Kxf6 {[%clk 00:00:05]} {[%emt 00:00:01]} Kxd6
{[%clk 00:00:04]} 51. Kxf7 {[%clk 00:00:06]} {[%emt 00:00:01]} 1-0

[Event "Grandmaster Triathlon - Blitz (GM2)"]
[Site "Biel, Switzerland"]
[Date "2026.07.19"]
[Round "9.2"]
[White "Kosteniuk, Alexandra"]
[Black "Finek, Vaclav"]
[Result "1-0"]
[TimeControl "3 + 2"]
[WhiteTitle "-"]
[BlackTitle "-"]
[WhiteFideId "4128125"]
[BlackFideId "23718293"]
[WhiteElo "2392"]
[BlackElo "2504"]

1. e4 {[%clk 00:03:03]} c5 {[%clk 00:03:03]} {[%emt 00:00:01]} 2. Nf3 {[%clk
00:03:04]} {[%emt 00:00:01]} g6 {[%clk 00:03:04]} {[%emt 00:00:01]} 3. c3
{[%clk 00:03:06]} {[%emt 00:00:01]} d5 {[%clk 00:03:05]} 4. exd5 {[%clk
00:03:06]} {[%emt 00:00:02]} Qxd5 {[%clk 00:03:06]} {[%emt 00:00:01]} 5. d4
{[%clk 00:03:07]} Bg7 {[%clk 00:03:06]} 6. Nbd2 {[%clk 00:03:05]} {[%emt
00:00:04]} Nf6 {[%clk 00:03:06]} {[%emt 00:00:02]} 7. Bc4 {[%clk 00:03:05]}
{[%emt 00:00:02]} Qd6 {[%clk 00:03:07]} 8. O-O {[%clk 00:03:01]} {[%emt
00:00:06]} O-O {[%clk 00:03:08]} {[%emt 00:00:02]} 9. dxc5 {[%clk 00:02:46]}
{[%emt 00:00:17]} Qxc5 {[%clk 00:03:08]} {[%emt 00:00:01]} 10. Qe2 {[%clk
00:02:47]} {[%emt 00:00:01]} Qc7 {[%clk 00:02:17]} {[%emt 00:00:53]} 11. Ne5
{[%clk 00:02:29]} {[%emt 00:00:20]} Nc6 {[%clk 00:01:57]} {[%emt 00:00:22]} 12.
Ndf3 {[%clk 00:02:19]} {[%emt 00:00:11]} Na5 {[%clk 00:01:58]} 13. Bd3 {[%clk
00:01:59]} {[%emt 00:00:23]} Nc6 {[%clk 00:01:37]} {[%emt 00:00:23]} 14. Bc4
{[%clk 00:01:55]} {[%emt 00:00:06]} Na5 {[%clk 00:01:34]} {[%emt 00:00:05]} 15.
Bd3 {[%clk 00:01:56]} Nc6 {[%clk 00:01:34]} {[%emt 00:00:02]} 16. Nxc6 {[%clk
00:01:38]} {[%emt 00:00:20]} bxc6 {[%clk 00:01:29]} {[%emt 00:00:07]} 17. Re1
{[%clk 00:01:34]} {[%emt 00:00:06]} Nd5 {[%clk 00:01:28]} {[%emt 00:00:03]} 18.
Ne5 {[%clk 00:01:30]} {[%emt 00:00:06]} Be6 {[%clk 00:01:21]} {[%emt 00:00:09]}
19. h3 {[%clk 00:01:27]} {[%emt 00:00:05]} Rfd8 {[%clk 00:01:15]} {[%emt
00:00:08]} 20. Bc2 {[%clk 00:01:24]} {[%emt 00:00:05]} Rab8 {[%clk 00:01:01]}
{[%emt 00:00:17]} 21. Bb3 {[%clk 00:01:21]} {[%emt 00:00:05]} Qxe5 {[%clk
00:00:54]} {[%emt 00:00:09]} 22. Qxe5 {[%clk 00:01:22]} {[%emt 00:00:01]} Bxe5
{[%clk 00:00:55]} {[%emt 00:00:01]} 23. Rxe5 {[%clk 00:01:23]} {[%emt
00:00:01]} Nc7 {[%clk 00:00:38]} {[%emt 00:00:19]} 24. Ba4 {[%clk 00:01:24]}
Rd5 {[%clk 00:00:32]} {[%emt 00:00:08]} 25. Re2 {[%clk 00:01:23]} {[%emt
00:00:03]} c5 {[%clk 00:00:28]} {[%emt 00:00:06]} 26. Bf4 {[%clk 00:01:05]}
{[%emt 00:00:20]} Rc8 {[%clk 00:00:29]} 27. Bc6 {[%clk 00:00:45]} {[%emt
00:00:22]} Rf5 {[%clk 00:00:31]} {[%emt 00:00:01]} 28. Bh2 {[%clk 00:00:46]}
Ne8 {[%clk 00:00:26]} {[%emt 00:00:07]} 29. Rxe6 {[%clk 00:00:39]} {[%emt
00:00:09]} fxe6 {[%clk 00:00:27]} 30. Bd7 {[%clk 00:00:40]} Rd8 {[%clk
00:00:29]} 31. Bxe6+ {[%clk 00:00:41]} Kf8 {[%clk 00:00:29]} {[%emt 00:00:02]}
32. Bxf5 {[%clk 00:00:42]} gxf5 {[%clk 00:00:30]} {[%emt 00:00:01]} 33. Bf4
{[%clk 00:00:43]} Kf7 {[%clk 00:00:29]} {[%emt 00:00:04]} 34. Be3 {[%clk
00:00:43]} {[%emt 00:00:02]} Rc8 {[%clk 00:00:28]} {[%emt 00:00:03]} 35. Rd1
{[%clk 00:00:43]} {[%emt 00:00:02]} Nf6 {[%clk 00:00:29]} {[%emt 00:00:01]} 36.
c4 {[%clk 00:00:38]} {[%emt 00:00:07]} a5 {[%clk 00:00:27]} {[%emt 00:00:04]}
37. Rd3 {[%clk 00:00:39]} Ne4 {[%clk 00:00:25]} {[%emt 00:00:04]} 38. f3 {[%clk
00:00:40]} {[%emt 00:00:02]} Nd6 {[%clk 00:00:26]} 39. b3 {[%clk 00:00:40]}
{[%emt 00:00:02]} a4 {[%clk 00:00:28]} 40. Rd5 {[%clk 00:00:40]} {[%emt
00:00:02]} axb3 {[%clk 00:00:29]} {[%emt 00:00:01]} 41. axb3 {[%clk 00:00:41]}
Nb7 {[%clk 00:00:18]} {[%emt 00:00:14]} 42. Rxf5+ {[%clk 00:00:41]} {[%emt
00:00:01]} Ke6 {[%clk 00:00:19]} 43. Rh5 {[%clk 00:00:42]} Na5 {[%clk
00:00:15]} {[%emt 00:00:06]} 44. b4 {[%clk 00:00:31]} {[%emt 00:00:13]} Nxc4
{[%clk 00:00:15]} {[%emt 00:00:02]} 45. Bxc5 {[%clk 00:00:32]} Rh8 {[%clk
00:00:15]} {[%emt 00:00:02]} 46. Rh4 {[%clk 00:00:30]} {[%emt 00:00:04]} Nd6
{[%clk 00:00:13]} {[%emt 00:00:04]} 47. Kf2 {[%clk 00:00:24]} {[%emt 00:00:08]}
Nf5 {[%clk 00:00:09]} {[%emt 00:00:06]} 48. Re4+ {[%clk 00:00:25]} Kd7 {[%clk
00:00:08]} {[%emt 00:00:03]} 49. g4 {[%clk 00:00:26]} {[%emt 00:00:02]} Nd6
{[%clk 00:00:10]} 50. Re5 {[%clk 00:00:27]} h6 {[%clk 00:00:07]} {[%emt
00:00:05]} 51. Rh5 {[%clk 00:00:26]} {[%emt 00:00:02]} Nf7 {[%clk 00:00:08]}
{[%emt 00:00:01]} 52. Rd5+ {[%clk 00:00:24]} {[%emt 00:00:05]} Ke6 {[%clk
00:00:08]} {[%emt 00:00:02]} 53. Rd1 {[%clk 00:00:20]} {[%emt 00:00:06]} Kf6
{[%clk 00:00:08]} {[%emt 00:00:02]} 54. b5 {[%clk 00:00:19]} {[%emt 00:00:03]}
Rc8 {[%clk 00:00:08]} {[%emt 00:00:02]} 55. Rc1 {[%clk 00:00:16]} {[%emt
00:00:06]} Ke6 {[%clk 00:00:04]} {[%emt 00:00:06]} 56. b6 {[%clk 00:00:15]}
{[%emt 00:00:02]} Kd7 {[%emt 00:00:05]} 57. Be3 {[%clk 00:00:14]} Rxc1 {[%clk
00:00:04]} {[%emt 00:00:02]} 58. Bxc1 {[%clk 00:00:16]} Kc6 {[%clk 00:00:05]}
{[%emt 00:00:01]} 59. Be3 {[%clk 00:00:18]} e5 {[%clk 00:00:04]} {[%emt
00:00:03]} 60. h4 {[%clk 00:00:18]} {[%emt 00:00:01]} Nd6 {[%clk 00:00:06]} 61.
Bxh6 {[%clk 00:00:16]} {[%emt 00:00:04]} Kxb6 {[%clk 00:00:07]} {[%emt
00:00:01]} 62. h5 {[%clk 00:00:17]} Nf7 {[%clk 00:00:08]} 63. Bg7 {[%clk
00:00:19]} 1-0

[Event "Grandmaster Triathlon - Blitz (GM2)"]
[Site "Biel, Switzerland"]
[Date "2026.07.19"]
[Round "9.3"]
[White "Materia, Marco"]
[Black "Yip, Carissa"]
[Result "1-0"]
[TimeControl "3 + 2"]
[WhiteTitle "-"]
[BlackTitle "-"]
[WhiteFideId "45150451"]
[BlackFideId "2090732"]
[WhiteElo "2509"]
[BlackElo "2369"]

1. Nf3 {[%clk 00:03:03]} g6 {[%clk 00:03:03]} {[%emt 00:00:02]} 2. d4 {[%clk
00:03:04]} {[%emt 00:00:01]} Bg7 {[%clk 00:03:04]} 3. e3 {[%clk 00:03:05]}
{[%emt 00:00:01]} d6 {[%clk 00:03:01]} {[%emt 00:00:05]} 4. Be2 {[%clk
00:03:05]} {[%emt 00:00:01]} Nd7 {[%clk 00:03:00]} {[%emt 00:00:03]} 5. O-O
{[%clk 00:03:05]} {[%emt 00:00:03]} b6 {[%clk 00:03:02]} {[%emt 00:00:01]} 6.
c4 {[%clk 00:03:05]} {[%emt 00:00:02]} Bb7 {[%clk 00:03:03]} {[%emt 00:00:01]}
7. Nc3 {[%clk 00:03:05]} {[%emt 00:00:02]} e5 {[%clk 00:03:01]} {[%emt
00:00:03]} 8. d5 {[%clk 00:03:02]} {[%emt 00:00:05]} f5 {[%clk 00:02:59]}
{[%emt 00:00:05]} 9. Qc2 {[%clk 00:03:00]} {[%emt 00:00:04]} h6 {[%clk
00:02:48]} {[%emt 00:00:12]} 10. b4 {[%clk 00:02:44]} {[%emt 00:00:19]} a5
{[%clk 00:02:40]} {[%emt 00:00:10]} 11. bxa5 {[%clk 00:02:44]} {[%emt
00:00:01]} Rxa5 {[%clk 00:02:41]} 12. a4 {[%clk 00:02:45]} {[%emt 00:00:01]}
Ngf6 {[%clk 00:02:00]} {[%emt 00:00:43]} 13. Ba3 {[%clk 00:02:31]} {[%emt
00:00:16]} O-O {[%clk 00:02:00]} {[%emt 00:00:02]} 14. Bb4 {[%clk 00:02:32]}
{[%emt 00:00:01]} Ra8 {[%clk 00:01:57]} {[%emt 00:00:05]} 15. a5 {[%clk
00:02:33]} {[%emt 00:00:01]} bxa5 {[%clk 00:01:57]} {[%emt 00:00:01]} 16. Rxa5
{[%clk 00:02:24]} {[%emt 00:00:12]} Rxa5 {[%clk 00:01:52]} {[%emt 00:00:08]} 17.
Bxa5 {[%clk 00:02:24]} {[%emt 00:00:01]} Nc5 {[%clk 00:01:53]} 18. Rb1 {[%clk
00:02:11]} {[%emt 00:00:15]} Ba6 {[%clk 00:01:44]} {[%emt 00:00:11]} 19. Nb5
{[%clk 00:02:08]} {[%emt 00:00:05]} Rf7 {[%clk 00:01:13]} {[%emt 00:00:32]} 20.
Nd2 {[%clk 00:01:43]} {[%emt 00:00:27]} Nfe4 {[%clk 00:00:55]} {[%emt
00:00:20]} 21. Nxe4 {[%clk 00:01:42]} {[%emt 00:00:03]} Nxe4 {[%clk 00:00:55]}
{[%emt 00:00:02]} 22. Qa2 {[%clk 00:01:18]} {[%emt 00:00:27]} Bxb5 {[%clk
00:00:48]} {[%emt 00:00:08]} 23. Rxb5 {[%clk 00:01:14]} {[%emt 00:00:06]} Kh7
{[%clk 00:00:26]} {[%emt 00:00:25]} 24. Bf1 {[%clk 00:00:58]} {[%emt 00:00:17]}
Qa8 {[%clk 00:00:25]} {[%emt 00:00:03]} 25. Qc2 {[%clk 00:00:53]} {[%emt
00:00:07]} c6 {[%clk 00:00:21]} {[%emt 00:00:06]} 26. dxc6 {[%clk 00:00:53]}
{[%emt 00:00:01]} Qxc6 {[%clk 00:00:22]} {[%emt 00:00:01]} 27. Bb4 {[%clk
00:00:48]} {[%emt 00:00:07]} Ra7 {[%clk 00:00:21]} {[%emt 00:00:03]} 28. Ra5
{[%clk 00:00:45]} {[%emt 00:00:05]} Rb7 {[%clk 00:00:21]} {[%emt 00:00:02]} 29.
Be1 {[%clk 00:00:42]} {[%emt 00:00:04]} Nc5 {[%clk 00:00:22]} {[%emt 00:00:02]}
30. Rb5 {[%clk 00:00:42]} {[%emt 00:00:03]} Ra7 {[%clk 00:00:22]} {[%emt
00:00:02]} 31. h4 {[%clk 00:00:42]} {[%emt 00:00:02]} Ra1 {[%clk 00:00:22]}
{[%emt 00:00:02]} 32. Bc3 {[%clk 00:00:41]} {[%emt 00:00:03]} Ra4 {[%clk
00:00:17]} {[%emt 00:00:07]} 33. h5 {[%clk 00:00:41]} {[%emt 00:00:02]} Qe4
{[%clk 00:00:18]} {[%emt 00:00:01]} 34. hxg6+ {[%clk 00:00:40]} {[%emt
00:00:02]} Kxg6 {[%clk 00:00:19]} {[%emt 00:00:01]} 35. Qd1 {[%clk 00:00:42]}
Qh4 {[%clk 00:00:16]} {[%emt 00:00:05]} 36. Qxd6+ {[%clk 00:00:39]} {[%emt
00:00:04]} 1-0

[Event "Grandmaster Triathlon - Blitz (GM2)"]
[Site "Biel, Switzerland"]
[Date "2026.07.19"]
[Round "10.1"]
[White "Yip, Carissa"]
[Black "Xiao, Tong(Qd)"]
[Result "0-1"]
[TimeControl "3 + 2"]
[WhiteTitle "-"]
[BlackTitle "-"]
[WhiteFideId "2090732"]
[BlackFideId "8622388"]
[WhiteElo "2369"]
[BlackElo "2465"]

1. e4 {[%clk 00:03:04]} c5 {[%clk 00:03:03]} 2. Nf3 {[%clk 00:03:04]} {[%emt
00:00:01]} e6 {[%clk 00:03:04]} {[%emt 00:00:02]} 3. d3 {[%clk 00:03:03]}
{[%emt 00:00:03]} Nc6 {[%clk 00:03:03]} {[%emt 00:00:03]} 4. g3 {[%clk
00:03:04]} {[%emt 00:00:01]} g6 {[%clk 00:03:04]} {[%emt 00:00:01]} 5. Bg5
{[%clk 00:03:05]} {[%emt 00:00:01]} f6 {[%clk 00:02:48]} {[%emt 00:00:18]} 6.
Be3 {[%clk 00:02:55]} {[%emt 00:00:12]} Bg7 {[%clk 00:02:48]} {[%emt 00:00:02]}
7. c3 {[%clk 00:02:39]} {[%emt 00:00:19]} b6 {[%clk 00:02:39]} {[%emt
00:00:11]} 8. Bg2 {[%clk 00:02:22]} {[%emt 00:00:18]} Nge7 {[%clk 00:02:40]}
{[%emt 00:00:02]} 9. O-O {[%clk 00:02:20]} {[%emt 00:00:04]} O-O {[%clk
00:02:38]} {[%emt 00:00:04]} 10. d4 {[%clk 00:02:12]} {[%emt 00:00:10]} cxd4
{[%clk 00:02:37]} {[%emt 00:00:03]} 11. Nxd4 {[%clk 00:02:10]} {[%emt
00:00:04]} Nxd4 {[%clk 00:02:31]} {[%emt 00:00:08]} 12. Bxd4 {[%clk 00:02:04]}
{[%emt 00:00:08]} Bb7 {[%clk 00:02:32]} 13. Qe2 {[%clk 00:01:56]} {[%emt
00:00:09]} e5 {[%clk 00:02:26]} {[%emt 00:00:09]} 14. Be3 {[%clk 00:01:57]}
{[%emt 00:00:01]} f5 {[%clk 00:02:25]} {[%emt 00:00:03]} 15. Bg5 {[%clk
00:01:52]} {[%emt 00:00:07]} h6 {[%clk 00:02:21]} {[%emt 00:00:06]} 16. Qc4+
{[%clk 00:01:29]} {[%emt 00:00:25]} Kh8 {[%clk 00:02:07]} {[%emt 00:00:16]} 17.
Bxe7 {[%clk 00:00:55]} {[%emt 00:00:35]} Qxe7 {[%clk 00:02:07]} {[%emt
00:00:02]} 18. exf5 {[%clk 00:00:56]} {[%emt 00:00:01]} Bxg2 {[%clk 00:02:05]}
{[%emt 00:00:05]} 19. Kxg2 {[%clk 00:00:57]} {[%emt 00:00:01]} gxf5 {[%clk
00:01:55]} {[%emt 00:00:11]} 20. Nd2 {[%clk 00:00:57]} {[%emt 00:00:02]} Rac8
{[%clk 00:01:56]} {[%emt 00:00:02]} 21. Qe2 {[%clk 00:00:55]} {[%emt 00:00:03]}
f4 {[%clk 00:01:35]} {[%emt 00:00:22]} 22. Qe4 {[%clk 00:00:31]} {[%emt
00:00:26]} d5 {[%clk 00:01:34]} {[%emt 00:00:03]} 23. Qg6 {[%clk 00:00:16]}
{[%emt 00:00:17]} e4 {[%emt 00:00:16]} 24. Rae1 {[%clk 00:00:10]} Qd7 {[%clk
00:01:18]} {[%emt 00:00:12]} 25. Qh5 {[%clk 00:00:10]} {[%emt 00:00:02]} Rf5
{[%clk 00:01:16]} {[%emt 00:00:04]} 26. Qh3 {[%clk 00:00:10]} {[%emt 00:00:02]}
b5 {[%clk 00:01:10]} {[%emt 00:00:08]} 27. Kg1 {[%clk 00:00:06]} {[%emt
00:00:06]} Rcf8 {[%clk 00:01:06]} {[%emt 00:00:05]} 28. Nb3 {[%clk 00:00:05]}
{[%emt 00:00:03]} Qf7 {[%clk 00:01:06]} {[%emt 00:00:02]} 29. Rd1 {[%clk
00:00:05]} {[%emt 00:00:03]} Rh5 {[%clk 00:01:03]} {[%emt 00:00:04]} 30. Qg4
{[%clk 00:00:05]} {[%emt 00:00:02]} Rg5 {[%clk 00:01:02]} {[%emt 00:00:03]} 31.
Qh3 {[%clk 00:00:06]} {[%emt 00:00:01]} Kh7 {[%clk 00:00:39]} {[%emt 00:00:26]}
32. Nc5 {[%clk 00:00:07]} {[%emt 00:00:01]} Re8 {[%clk 00:00:30]} {[%emt
00:00:11]} 33. Qd7 {[%clk 00:00:07]} {[%emt 00:00:02]} Re7 {[%clk 00:00:17]}
{[%emt 00:00:15]} 34. Qh3 {[%clk 00:00:08]} {[%emt 00:00:01]} f3 {[%clk
00:00:17]} {[%emt 00:00:02]} 35. Rfe1 {[%clk 00:00:08]} {[%emt 00:00:02]} Rge5
{[%clk 00:00:05]} {[%emt 00:00:14]} 36. Re3 {[%clk 00:00:08]} {[%emt 00:00:02]}
Qg6 {[%clk 00:00:05]} {[%emt 00:00:03]} 37. Nd7 {[%clk 00:00:08]} {[%emt
00:00:02]} Rh5 {[%clk 00:00:05]} {[%emt 00:00:01]} 38. Qf1 {[%clk 00:00:07]}
{[%emt 00:00:03]} Rxd7 {[%clk 00:00:06]} 39. Qxb5 {[%clk 00:00:06]} {[%emt
00:00:04]} Qf5 {[%clk 00:00:05]} {[%emt 00:00:03]} 40. Qf1 {[%clk 00:00:05]}
{[%emt 00:00:02]} Rc7 {[%clk 00:00:04]} {[%emt 00:00:03]} 41. h4 {[%clk
00:00:05]} {[%emt 00:00:02]} Qg4 {[%clk 00:00:04]} {[%emt 00:00:02]} 42. Kh2
{[%clk 00:00:06]} Be5 {[%clk 00:00:05]} {[%emt 00:00:01]} 43. Kg1 {[%clk
00:00:05]} {[%emt 00:00:03]} Rxh4 {[%clk 00:00:05]} {[%emt 00:00:02]} 44. Rxd5
{[%clk 00:00:03]} {[%emt 00:00:04]} Bxg3 {[%clk 00:00:05]} {[%emt 00:00:01]}
0-1

[Event "Grandmaster Triathlon - Blitz (GM2)"]
[Site "Biel, Switzerland"]
[Date "2026.07.19"]
[Round "10.2"]
[White "Finek, Vaclav"]
[Black "Materia, Marco"]
[Result "1-0"]
[TimeControl "3 + 2"]
[WhiteTitle "-"]
[BlackTitle "-"]
[WhiteFideId "23718293"]
[BlackFideId "45150451"]
[WhiteElo "2504"]
[BlackElo "2509"]

1. d4 {[%clk 00:03:04]} Nf6 {[%clk 00:03:03]} 2. c4 {[%clk 00:03:05]} e6 {[%clk
00:03:05]} 3. Nf3 {[%clk 00:03:06]} {[%emt 00:00:01]} d5 {[%clk 00:03:06]}
{[%emt 00:00:01]} 4. g3 {[%clk 00:03:07]} Bb4+ {[%clk 00:03:07]} {[%emt
00:00:01]} 5. Bd2 {[%clk 00:03:08]} Be7 {[%clk 00:03:08]} {[%emt 00:00:01]} 6.
Bg2 {[%clk 00:03:10]} O-O {[%emt 00:00:03]} 7. O-O {[%clk 00:03:10]} c6 {[%clk
00:03:09]} {[%emt 00:00:02]} 8. Qc2 {[%clk 00:03:10]} {[%emt 00:00:02]} Nbd7
{[%clk 00:03:10]} {[%emt 00:00:01]} 9. a4 {[%clk 00:03:10]} {[%emt 00:00:03]}
a5 {[%clk 00:03:10]} 10. Rc1 {[%clk 00:03:11]} Ne4 {[%clk 00:03:11]} 11. Ne1
{[%clk 00:03:07]} {[%emt 00:00:06]} f5 {[%clk 00:03:05]} {[%emt 00:00:08]} 12.
Nd3 {[%clk 00:03:07]} {[%emt 00:00:02]} Qe8 {[%clk 00:02:57]} {[%emt 00:00:11]}
13. Be1 {[%clk 00:03:01]} {[%emt 00:00:09]} Bd6 {[%clk 00:02:54]} {[%emt
00:00:04]} 14. Nd2 {[%clk 00:03:00]} {[%emt 00:00:03]} g5 {[%clk 00:02:53]}
{[%emt 00:00:03]} 15. Nf3 {[%clk 00:02:58]} {[%emt 00:00:04]} Qg6 {[%clk
00:02:48]} {[%emt 00:00:07]} 16. Nfe5 {[%clk 00:02:58]} {[%emt 00:00:02]} Qg7
{[%clk 00:02:47]} {[%emt 00:00:03]} 17. Nxd7 {[%clk 00:02:11]} {[%emt
00:00:46]} Bxd7 {[%clk 00:02:48]} {[%emt 00:00:04]} 18. e3 {[%clk 00:02:11]}
{[%emt 00:00:02]} h5 {[%clk 00:02:39]} {[%emt 00:00:10]} 19. b4 {[%clk
00:02:12]} {[%emt 00:00:02]} h4 {[%clk 00:02:21]} {[%emt 00:00:20]} 20. bxa5
{[%clk 00:01:45]} {[%emt 00:00:29]} hxg3 {[%clk 00:02:22]} 21. fxg3 {[%clk
00:00:33]} {[%emt 00:01:14]} Be8 {[%clk 00:02:08]} {[%emt 00:00:16]} 22. Rab1
{[%clk 00:00:25]} {[%emt 00:00:10]} f4 {[%clk 00:02:06]} {[%emt 00:00:04]} 23.
Qe2 {[%clk 00:00:16]} {[%emt 00:00:11]} fxg3 {[%clk 00:02:00]} {[%emt
00:00:08]} 24. hxg3 {[%clk 00:00:17]} {[%emt 00:00:01]} Nxg3 {[%clk 00:01:54]}
{[%emt 00:00:08]} 25. Bxg3 {[%clk 00:00:16]} {[%emt 00:00:03]} Bxg3 {[%clk
00:01:55]} 26. Qg4 {[%clk 00:00:17]} {[%emt 00:00:01]} Bb8 {[%clk 00:01:52]}
{[%emt 00:00:05]} 27. Rf1 {[%clk 00:00:17]} {[%emt 00:00:02]} Rxf1+ {[%clk
00:01:32]} {[%emt 00:00:22]} 28. Rxf1 {[%clk 00:00:18]} Qh6 {[%clk 00:01:33]}
29. Bh3 {[%clk 00:00:17]} {[%emt 00:00:03]} Bf7 {[%clk 00:01:27]} {[%emt
00:00:08]} 30. Nc5 {[%clk 00:00:19]} Rxa5 {[%clk 00:01:24]} {[%emt 00:00:05]}
31. Nxe6 {[%clk 00:00:16]} {[%emt 00:00:04]} dxc4 {[%clk 00:01:06]} {[%emt
00:00:20]} 32. Nd8 {[%clk 00:00:11]} {[%emt 00:00:07]} Qd6 {[%clk 00:01:00]}
{[%emt 00:00:08]} 33. Rxf7 {[%clk 00:00:12]} {[%emt 00:00:01]} Rxa4 {[%clk
00:00:56]} {[%emt 00:00:07]} 34. Qxg5+ {[%emt 00:00:04]} 1-0